bitfinex-derivatives/quotes_BNBF0:USTF0_20250524
["timestamp","ask_amount","ask_price","bid_price","bid_amount"]
[1748121123708,1.06477418,672.38,672.01,0.65589637]
[1748121123906,0.29744642,672.39,672.01,0.65589637]
[1748121124106,1.06476797,672.38,672.01,0.65589637]
[1748121124309,0.29744642,672.39,672.02,0.65589637]
[1748121124508,1.06489983,672.38,672.02,0.65589637]
[1748121124709,0.29744642,672.39,672.02,0.65589637]
[1748121124912,1.06490977,672.38,672.02,0.65589637]
[1748121125211,0.29744642,672.39,672.02,0.65589637]
[1748121125411,1.065079,672.38,672.02,0.65589637]
[1748121125604,0.29744642,672.39,672.02,0.65589637]
[1748121125805,1.06507954,672.38,672.03,0.65589637]
[1748121126009,0.29744642,672.39,672.03,0.65589637]
[1748121126311,1.06507711,672.38,672.03,0.65589637]
[1748121126512,0.29744642,672.39,672.03,0.65589637]
[1748121126712,0.29744642,672.39,672.04,0.56]
[1748121126913,0.29744642,672.39,672.04,1.21589637]
[1748121127114,1.0652789,672.38,672.04,1.21589637]
[1748121127314,0.29744642,672.39,672.04,1.21589637]
[1748121127615,1.0654319,672.38,672.04,1.21589637]
[1748121127812,0.29744642,672.39,672.05,0.65589637]
[1748121128013,1.0654235,672.38,672.05,0.65589637]
[1748121128217,0.29744642,672.39,672.05,0.65589637]
[1748121128416,1.06541425,672.38,672.05,0.65589637]
[1748121128618,1.06558712,672.37,672.05,0.65589637]
[1748121128914,0.29744642,672.39,672.05,0.65589637]
[1748121129113,1.06558552,672.38,672.05,0.65589637]
[1748121129417,1.06558552,672.37,672.05,0.65589637]
[1748121129613,0.29744642,672.39,672.06,0.65589637]
[1748121129813,1.0657839,672.38,672.06,0.65589637]
[1748121130018,1.0657839,672.37,672.06,0.65589637]
[1748121130217,0.29744642,672.39,672.06,0.65589637]
[1748121130414,1.06579175,672.38,672.06,0.65589637]
[1748121130617,1.0660185,672.37,672.07,0.65589637]
[1748121130819,0.29744642,672.39,672.07,0.65589637]
[1748121131019,1.06601854,672.38,672.07,0.65589637]
[1748121131220,1.06601854,672.37,672.07,0.65589637]
[1748121131519,0.29744642,672.39,672.07,0.65589637]
[1748121131715,1.06616452,672.38,672.08,0.65589637]
[1748121131915,1.06616452,672.37,672.08,0.65589637]
[1748121132118,0.29744642,672.39,672.08,0.65589637]
[1748121132414,1.06616606,672.38,672.09,0.65589637]
[1748121132614,1.06616606,672.37,672.09,0.65589637]
[1748121132921,0.29744642,672.39,672.09,0.65589637]
[1748121133115,1.06633715,672.38,672.09,0.65589637]
[1748121133319,1.06633715,672.37,672.09,0.65589637]
[1748121133519,1.06633715,672.36,672.09,0.65589637]
[1748121133714,0.29744642,672.39,672.1,0.65589637]
[1748121133913,1.06651395,672.38,672.1,0.65589637]
[1748121134120,1.06651395,672.37,672.1,0.65589637]
[1748121134321,1.06671499,672.36,672.1,0.65589637]
[1748121134516,0.29744642,672.39,672.1,0.65589637]
[1748121134722,1.06671502,672.38,672.11,0.65589637]
[1748121134922,1.06671502,672.37,672.11,0.65589637]
[1748121135222,1.06671502,672.36,672.11,0.65589637]
[1748121135424,0.29744642,672.39,672.11,0.65589637]
[1748121135624,1.06693637,672.38,672.11,0.65589637]
[1748121135824,1.06693637,672.37,672.11,0.65589637]
[1748121136025,1.06693637,672.36,672.07,0.701]
[1748121136225,0.29744642,672.39,672.07,0.701]
[1748121136426,1.06713591,672.38,672.07,0.701]
[1748121136620,1.06713591,672.37,672.07,0.701]
[1748121136825,1.06713591,672.36,672.07,0.701]
[1748121137026,0.29744642,672.39,672.07,0.701]
[1748121137222,1.06717906,672.38,672.08,1.29217507]
[1748121137425,1.06717906,672.37,672.08,1.29217507]
[1748121137626,1.06717906,672.36,672.08,1.29217507]
[1748121137827,0.29744642,672.39,672.08,1.29217507]
[1748121138027,1.06745861,672.38,672.08,1.29217507]
[1748121138230,1.06745857,672.37,672.09,0.65317507]
[1748121138421,1.06745857,672.36,672.09,0.65317507]
[1748121138624,1.06745857,672.35,672.09,0.65317507]
[1748121138921,0.29744642,672.39,672.09,0.65317507]
[1748121139126,1.06776944,672.38,672.1,0.65317507]
[1748121139324,1.06776944,672.37,672.1,0.65317507]
[1748121139527,1.06776944,672.36,672.1,0.65317507]
[1748121139724,1.06776944,672.35,672.1,0.65317507]
[1748121139923,0.29744642,672.39,672.1,0.65317507]
[1748121140128,1.06811791,672.38,672.1,0.65317507]
[1748121140428,1.06811791,672.37,672.09,0.65317507]
[1748121140627,1.06811791,672.36,672.09,0.65317507]
[1748121140827,1.06811791,672.35,672.09,0.65317507]
[1748121141127,0.29744642,672.39,672.09,0.65317507]
[1748121141327,1.06849593,672.38,672.09,0.65317507]
[1748121141627,1.06849593,672.37,672.09,0.65317507]
[1748121141827,1.06849593,672.36,672.09,0.65317507]
[1748121142028,1.06849593,672.35,672.09,0.65317507]
[1748121142227,1.06849593,672.34,672.09,0.65317507]
[1748121142427,0.29744642,672.39,672.09,0.65317507]
[1748121142627,1.06948427,672.38,672.09,0.65317507]
[1748121142825,1.06948427,672.37,672.09,0.65317507]
[1748121143026,1.06948427,672.36,672.09,0.65317507]
[1748121143327,1.06948427,672.35,672.09,0.65317507]
[1748121143529,1.06948427,672.34,672.09,0.65317507]
[1748121143724,1.06948427,672.33,672.09,0.65317507]
[1748121143929,0.29744642,672.39,672.09,0.65317507]
[1748121144125,1.06998473,672.38,672.09,0.65317507]
[1748121144328,1.06998473,672.37,672.09,0.65317507]
[1748121144527,1.06998473,672.36,672.09,0.65317507]
[1748121144730,1.06998473,672.35,672.09,0.65317507]
[1748121144930,1.06998473,672.34,672.09,0.65317507]
[1748121145131,1.06998473,672.33,672.09,0.65317507]
[1748121145327,1.07127571,672.32,672.09,0.65317507]
[1748121145528,0.29744642,672.39,672.09,0.65317507]
[1748121145730,1.07127273,672.38,672.09,0.65317507]
[1748121145933,1.07127273,672.37,672.09,0.65317507]
[1748121146132,1.07127273,672.36,672.09,0.65317507]
[1748121146329,1.07127273,672.35,672.09,0.65317507]
[1748121146528,1.07127273,672.34,672.09,0.65317507]
[1748121146727,1.07127273,672.33,672.09,0.65317507]
[1748121146925,1.07127273,672.32,672.09,0.65317507]
[1748121147129,0.29744642,672.39,672.09,0.65317507]
[1748121147329,1.07130155,672.38,672.09,0.65317507]
[1748121147523,1.07130155,672.37,672.09,0.65317507]
[1748121147730,1.07130155,672.36,672.09,0.65317507]
[1748121147928,1.07130155,672.35,672.09,0.65317507]
[1748121148125,1.07133473,672.34,672.1,0.63]
[1748121148328,1.07133473,672.33,672.1,0.63]
[1748121148631,1.07133473,672.32,672.11,0.65317507]
[1748121148831,1.07133473,672.31,672.11,0.65317507]
[1748121149026,1.07133473,672.3,672.11,0.65317507]
[1748121149234,0.29744642,672.39,672.11,0.65317507]
[1748121149431,1.07188888,672.38,672.11,0.65317507]
[1748121149731,1.07188888,672.37,672.11,0.65317507]
[1748121149932,1.07188888,672.36,672.11,0.65317507]
[1748121150130,1.07188888,672.35,672.11,0.65317507]
[1748121150330,1.07188888,672.34,672.11,0.65317507]
[1748121150531,1.07188888,672.33,672.11,0.65317507]
[1748121150732,1.07188888,672.32,672.11,0.65317507]
[1748121150927,1.07188888,672.31,672.11,0.65317507]
[1748121151130,0.29744642,672.39,672.11,0.65317507]
[1748121151131,1.07188888,672.3,672.11,0.65317507]
[1748121151327,1.07188888,672.29,672.11,0.65317507]
[1748121151531,1.07296514,672.28,672.11,0.65317507]
[1748121151733,1.07296514,672.27,672.11,0.65317507]
[1748121152032,0.29744642,672.39,672.11,0.65317507]
[1748121152233,1.07296632,672.38,672.11,0.65317507]
[1748121152431,1.07296632,672.37,672.11,0.65317507]
[1748121152632,1.07296632,672.36,672.11,0.65317507]
[1748121152833,1.07296632,672.35,672.11,0.65317507]
[1748121153028,1.07296632,672.34,672.11,0.65317507]
[1748121153231,1.07296632,672.33,672.11,0.65317507]
[1748121153434,1.07296632,672.32,672.11,0.65317507]
[1748121153633,1.07296632,672.31,672.11,0.65317507]
[1748121153826,1.07296632,672.3,672.11,0.65317507]
[1748121154031,1.07296632,672.29,672.11,0.65317507]
[1748121154229,1.07296632,672.28,672.11,0.65317507]
[1748121154428,1.07296632,672.27,672.11,0.65317507]
[1748121154633,1.07296632,672.26,672.11,0.65317507]
[1748121154833,1.07296632,672.25,672.11,0.65317507]
[1748121155033,1.07296632,672.24,672.11,0.65317507]
[1748121155234,0.29744642,672.39,672.11,0.65317507]
[1748121155530,1.07429425,672.38,672.11,0.65317507]
[1748121155733,1.07429425,672.37,672.11,0.65317507]
[1748121156033,1.07429425,672.36,672.11,0.65317507]
[1748121156233,1.07429425,672.35,672.11,0.65317507]
[1748121156435,1.07429425,672.34,672.13,0.46967583]
[1748121156634,1.07429425,672.33,672.14,0.65317507]
[1748121156836,1.07429425,672.32,672.14,0.65317507]
[1748121157036,1.07429425,672.31,672.14,0.65317507]
[1748121157230,1.07429425,672.3,672.14,0.65317507]
[1748121157432,1.07429425,672.29,672.14,0.65317507]
[1748121157736,1.07429425,672.28,672.14,0.65317507]
[1748121157929,1.07429425,672.27,672.14,0.65317507]
[1748121158236,1.07429425,672.26,672.14,0.65317507]
[1748121158438,1.07429425,672.25,672.14,0.65317507]
[1748121158637,1.07429425,672.24,672.14,0.65317507]
[1748121158936,1.07429425,672.23,672.14,0.65317507]
[1748121159138,1.07514836,672.22,672.14,0.65317507]
[1748121159336,1.07514836,672.21,672.14,0.65317507]
[1748121159533,1.07514836,672.2,672.14,0.65317507]
[1748121159732,1.07514836,672.19,672.14,0.65317507]
[1748121159936,0.29744642,672.39,672.14,0.65317507]
[1748121160137,1.07536358,672.38,672.14,0.65317507]
[1748121160436,1.07536358,672.37,672.14,0.65317507]
[1748121160734,1.07536358,672.36,672.15,0.648]
[1748121160936,1.07536358,672.35,672.15,0.648]
[1748121161134,1.07536358,672.34,672.15,0.648]
[1748121161333,1.07536358,672.33,672.15,0.648]
[1748121161532,1.07536358,672.32,672.16,0.65317507]
[1748121161732,1.07536358,672.31,672.16,0.65317507]
[1748121161932,1.07536358,672.3,672.16,0.65317507]
[1748121162133,1.07536358,672.29,672.16,0.65317507]
[1748121162337,1.07536358,672.28,672.16,0.65317507]
[1748121162538,1.07536358,672.27,672.17,0.65317507]
[1748121162740,1.07536358,672.26,672.17,0.65317507]
[1748121162939,1.07631979,672.25,672.17,0.65317507]
[1748121163139,1.07631979,672.24,672.17,0.65317507]
[1748121163339,1.07631979,672.23,672.17,0.65317507]
[1748121163535,1.07631979,672.22,672.18,0.65317507]
[1748121163738,1.07631979,672.21,672.18,0.65317507]
[1748121164038,1.07631979,672.2,672.18,0.65317507]
[1748121164339,1.07631979,672.19,672.18,0.65317507]
[1748121164842,1.07704991,672.19,672.18,0.65317507]
[1748121172244,0.29744642,672.39,672.18,0.65317507]
[1748121172440,1.07765687,672.38,672.18,0.65317507]
[1748121172644,1.07765687,672.37,672.19,0.65317507]
[1748121172843,1.07765687,672.36,672.19,0.65317507]
[1748121173142,1.07765687,672.35,672.19,0.65317507]
[1748121173340,1.07765687,672.34,672.2,0.65317507]
[1748121173539,1.07765687,672.33,672.2,0.65317507]
[1748121173744,1.07765687,672.32,672.2,0.65317507]
[1748121173944,1.07765687,672.31,672.2,0.65317507]
[1748121174139,0.29744642,672.39,672.2,0.65317507]
[1748121174340,1.07765627,672.38,672.21,0.65317507]
[1748121174541,1.07765627,672.37,672.21,0.65317507]
[1748121174744,1.07765627,672.36,672.21,0.65317507]
[1748121174945,1.07765627,672.35,672.21,0.65317507]
[1748121175144,1.07765627,672.34,672.21,0.65317507]
[1748121175346,1.07765627,672.33,672.21,0.65317507]
[1748121175645,1.07765627,672.32,672.21,0.65317507]
[1748121175840,1.07765627,672.31,672.22,0.65317507]
[1748121176045,1.07765627,672.3,672.22,0.65317507]
[1748121176243,1.0776525,672.29,672.22,0.65317507]
[1748121176440,1.0776525,672.28,672.22,0.65317507]
[1748121176745,1.0776525,672.27,672.23,0.65317507]
[1748121176946,1.0776525,672.26,672.23,0.65317507]
[1748121177241,1.0776525,672.25,672.23,0.65317507]
[1748121177449,1.0776525,672.24,672.23,0.65317507]
[1748121177848,1.0776525,672.24,672.15,0.648]
[1748121178048,0.29744642,672.39,672.15,0.648]
[1748121178049,1.0776525,672.23,672.15,0.648]
[1748121178248,1.0776525,672.22,672.15,0.648]
[1748121178447,0.29744642,672.39,672.15,0.648]
[1748121178448,1.0776525,672.21,672.15,0.648]
[1748121178642,1.0776525,672.2,672.15,0.648]
[1748121178842,1.0776525,672.19,672.15,0.648]
[1748121179045,1.0776525,672.18,672.16,0.66016609]
[1748121179249,1.0776525,672.17,672.16,0.66016609]
[1748121181751,1.0776936,672.17,672.16,0.66016609]
[1748121184259,0.29744642,672.39,672.16,0.66016609]
[1748121184449,1.07785185,672.38,672.16,0.66016609]
[1748121184649,1.07785185,672.37,672.16,0.66016609]
[1748121184854,1.07785185,672.36,672.16,0.66016609]
[1748121185055,1.07785185,672.35,672.16,0.66016609]
[1748121185354,1.07785185,672.34,672.17,0.66016609]
[1748121185554,1.07785185,672.33,672.17,0.66016609]
[1748121185756,1.07785185,672.32,672.17,0.66016609]
[1748121185952,1.07785185,672.31,672.17,0.66016609]
[1748121186152,1.07785185,672.3,672.17,0.66016609]
[1748121186354,1.07785185,672.29,672.17,0.66016609]
[1748121186551,1.07785185,672.28,672.17,0.66016609]
[1748121186752,1.07785185,672.27,672.17,0.66016609]
[1748121186953,1.07785185,672.26,672.18,0.66016609]
[1748121187156,1.07785185,672.25,672.18,0.66016609]
[1748121187356,1.07785185,672.24,672.18,0.66016609]
[1748121187652,0.29744642,672.39,672.18,0.66016609]
[1748121187856,1.07617755,672.38,672.18,0.66016609]
[1748121188058,1.07617755,672.37,672.18,0.66016609]
[1748121188258,0.29744642,672.39,672.19,0.66016609]
[1748121188259,1.07617755,672.36,672.19,0.66016609]
[1748121188459,1.07617755,672.35,672.19,0.66016609]
[1748121188660,1.07617755,672.34,672.19,0.66016609]
[1748121188958,1.07617755,672.33,672.19,0.66016609]
[1748121189160,0.29744642,672.39,672.19,0.66016609]
[1748121189360,1.07594852,672.38,672.19,0.66016609]
[1748121189555,1.07594852,672.37,672.2,0.66016609]
[1748121189754,1.07594852,672.36,672.2,0.66016609]
[1748121189957,1.07594852,672.35,672.2,0.66016609]
[1748121190158,1.07594852,672.34,672.2,0.66016609]
[1748121190454,1.07594852,672.33,672.2,0.66016609]
[1748121190757,1.07594852,672.32,672.2,0.66016609]
[1748121190954,1.07594852,672.31,672.2,0.66016609]
[1748121191259,1.07594852,672.3,672.2,0.66016609]
[1748121191460,1.07594852,672.29,672.21,0.66016609]
[1748121191660,1.07594852,672.28,672.21,0.66016609]
[1748121191863,1.07594852,672.27,672.21,0.66016609]
[1748121192062,1.07594852,672.26,672.21,0.66016609]
[1748121192262,0.29744642,672.39,672.21,0.66016609]
[1748121192461,1.07564944,672.38,672.22,0.66016609]
[1748121192755,0.29744642,672.39,672.22,0.66016609]
[1748121192756,1.07564944,672.37,672.22,0.66016609]
[1748121193060,1.07556795,672.36,672.22,0.66016609]
[1748121193258,1.07556795,672.35,672.22,0.66016609]
[1748121193462,1.07556795,672.34,672.22,0.66016609]
[1748121193663,1.07556795,672.33,672.23,0.66016609]
[1748121193855,1.07556795,672.32,672.23,0.66016609]
[1748121194060,1.07556795,672.31,672.23,0.66016609]
[1748121194257,1.07556795,672.3,672.23,0.66016609]
[1748121194462,0.29744642,672.39,672.23,0.66016609]
[1748121194661,1.07581141,672.38,672.24,0.66016609]
[1748121194861,0.29744642,672.39,672.24,0.66016609]
[1748121194862,1.07583026,672.37,672.24,0.66016609]
[1748121195064,1.07583026,672.36,672.24,0.66016609]
[1748121195363,1.07583026,672.35,672.24,0.66016609]
[1748121195563,1.07583026,672.34,672.24,0.66016609]
[1748121195764,1.07583026,672.33,672.25,0.66016609]
[1748121195963,1.07583026,672.32,672.25,0.66016609]
[1748121196164,1.07583026,672.31,672.25,0.66016609]
[1748121196363,0.29744642,672.39,672.25,0.66016609]
[1748121196664,1.0756844,672.38,672.26,0.66016609]
[1748121196865,1.07558293,672.37,672.26,0.66016609]
[1748121197163,1.07558293,672.36,672.26,0.66016609]
[1748121197364,1.07558293,672.35,672.26,0.66016609]
[1748121197560,1.07558293,672.34,672.26,0.66016609]
[1748121197762,1.07558293,672.33,672.26,0.66016609]
[1748121197960,1.07558293,672.32,672.27,0.66016609]
[1748121198260,0.29744642,672.39,672.27,0.66016609]
[1748121198463,1.07548211,672.38,672.27,0.66016609]
[1748121198661,0.29744642,672.39,672.27,0.66016609]
[1748121198868,1.07539361,672.38,672.28,0.66016609]
[1748121199165,1.07539361,672.37,672.28,0.66016609]
[1748121199367,1.07539361,672.36,672.28,0.66016609]
[1748121199567,1.07539361,672.35,672.28,0.66016609]
[1748121199768,1.07539361,672.34,672.29,0.66016609]
[1748121200062,0.29744642,672.39,672.29,0.66016609]
[1748121200266,1.07524877,672.38,672.29,0.66016609]
[1748121200465,1.07524877,672.37,672.29,0.66016609]
[1748121200663,1.0751045,672.36,672.29,0.66016609]
[1748121200862,1.0751045,672.35,672.29,0.66016609]
[1748121201062,1.0751045,672.35,672.15,0.648]
[1748121201063,0.29744642,672.39,672.3,0.66016609]
[1748121201265,1.07510235,672.38,672.3,0.66016609]
[1748121201563,1.07510235,672.37,672.3,0.66016609]
[1748121201762,1.07510235,672.36,672.3,0.66016609]
[1748121201964,1.07510235,672.35,672.3,0.66016609]
[1748121202166,0.29744642,672.39,672.3,0.66016609]
[1748121202463,1.07496084,672.38,672.31,0.66016609]
[1748121202662,1.07496084,672.37,672.31,0.66016609]
[1748121202865,1.07496084,672.36,672.31,0.66016609]
[1748121203062,0.29744642,672.39,672.31,0.66016609]
[1748121203267,1.0749084,672.38,672.32,0.66016609]
[1748121203463,1.0749084,672.37,672.32,0.66016609]
[1748121203766,0.25877935,672.9,672.32,0.66016609]
[1748121203967,1.37211498,672.89,672.32,0.66016609]
[1748121204267,1.37211939,672.88,672.32,0.66016609]
[1748121204563,1.37212381,672.87,672.32,0.66016609]
[1748121204766,1.37212823,672.86,672.33,0.66016609]
[1748121204965,1.37213265,672.85,672.33,0.66016609]
[1748121205164,1.37213706,672.84,672.33,0.66016609]
[1748121205361,1.37214148,672.83,672.33,0.66016609]
[1748121205565,1.3721459,672.82,672.33,0.66016609]
[1748121205766,1.37215032,672.81,672.33,0.66016609]
[1748121205967,1.37215474,672.8,672.34,0.66016609]
[1748121206164,1.37215915,672.79,672.34,0.66016609]
[1748121206367,1.3718079,672.78,672.34,0.66016609]
[1748121206666,1.37181232,672.77,672.34,0.66016609]
[1748121206868,1.37181674,672.76,672.34,0.66016609]
[1748121207068,1.07453391,672.75,672.35,0.66016609]
[1748121207269,1.07453391,672.74,672.35,0.66016609]
[1748121207468,1.07453391,672.73,672.35,0.66016609]
[1748121207664,1.07453391,672.72,672.35,0.66016609]
[1748121207865,1.07453391,672.71,672.36,0.66016609]
[1748121208069,1.07453391,672.7,672.36,0.66016609]
[1748121208270,1.0742438,672.69,672.36,0.66016609]
[1748121208468,1.0742438,672.68,672.36,0.66016609]
[1748121208674,1.0742438,672.67,672.36,0.66016609]
[1748121208873,1.0742438,672.66,672.36,0.66016609]
[1748121209073,1.0742438,672.66,672.2,0.65]
[1748121209074,1.0742438,672.65,672.37,0.66016609]
[1748121209270,1.0742438,672.64,672.37,0.66016609]
[1748121209474,1.0742438,672.63,672.37,0.66016609]
[1748121209670,1.0742438,672.62,672.38,0.602]
[1748121209876,1.0742438,672.61,672.38,0.602]
[1748121210175,1.0742438,672.6,672.39,0.66016609]
[1748121210374,1.07396234,672.59,672.39,0.66016609]
[1748121210574,1.07396234,672.58,672.39,0.66016609]
[1748121210873,0.29728283,672.76,672.39,0.66016609]
[1748121210874,1.07396234,672.57,672.39,0.66016609]
[1748121211070,1.07396234,672.56,672.39,0.66016609]
[1748121211275,1.07396234,672.55,672.39,0.66016609]
[1748121211474,1.07396234,672.54,672.39,0.66016609]
[1748121211674,1.07396234,672.53,672.4,0.66016609]
[1748121211869,1.07396234,672.52,672.4,0.66016609]
[1748121212072,1.07396234,672.51,672.4,0.66016609]
[1748121212276,1.07396234,672.5,672.4,0.66016609]
[1748121212576,1.07396234,672.49,672.38,0.602]
[1748121212871,1.07396234,672.48,672.38,0.602]
[1748121213076,0.29728283,672.76,672.38,0.602]
[1748121213276,1.07365715,672.75,672.38,0.602]
[1748121213477,1.07365715,672.74,672.38,0.602]
[1748121213777,1.07365715,672.73,672.39,0.65776239]
[1748121213979,1.0735587,672.72,672.39,0.65776239]
[1748121214173,1.0735587,672.71,672.39,0.65776239]
[1748121214373,1.0735587,672.7,672.39,0.65776239]
[1748121214576,1.0735587,672.69,672.39,0.65776239]
[1748121214772,1.0735587,672.68,672.39,0.65776239]
[1748121214976,1.0735587,672.67,672.4,0.65776239]
[1748121215178,1.0735587,672.66,672.4,0.65776239]
[1748121215380,1.0735587,672.65,672.4,0.65776239]
[1748121215677,1.0735587,672.64,672.4,0.65776239]
[1748121215877,1.07336002,672.63,672.4,0.65776239]
[1748121216076,1.07336002,672.62,672.4,0.65776239]
[1748121216272,1.07336002,672.61,672.4,0.65776239]
[1748121216477,1.07336002,672.6,672.38,0.602]
[1748121216677,1.07336002,672.59,672.38,0.602]
[1748121216872,1.07336002,672.58,672.38,0.602]
[1748121217077,1.07336002,672.57,672.38,0.602]
[1748121217276,1.07336002,672.56,672.38,0.602]
[1748121217477,1.07336002,672.55,672.39,0.65847141]
[1748121217678,1.07336002,672.54,672.39,0.65847141]
[1748121217973,1.07336002,672.53,672.39,0.65847141]
[1748121218174,1.07336002,672.52,672.39,0.65847141]
[1748121218477,1.07336002,672.51,672.39,0.65847141]
[1748121218679,1.07336002,672.5,672.38,0.602]
[1748121218877,1.07336002,672.49,672.38,0.602]
[1748121219078,0.29728283,672.76,672.38,0.602]
[1748121219277,1.07356448,672.75,672.38,0.602]
[1748121219477,1.07356448,672.74,672.38,0.602]
[1748121219679,1.07352362,672.73,672.38,0.602]
[1748121219876,1.07352362,672.72,672.38,0.602]
[1748121220084,1.07352362,672.71,672.38,0.602]
[1748121220282,1.07352362,672.7,672.38,0.602]
[1748121220582,1.07352362,672.69,672.38,0.602]
[1748121220781,1.07352362,672.68,672.38,0.602]
[1748121220983,1.07352362,672.67,672.39,0.65832084]
[1748121221282,1.07352362,672.66,672.39,0.65832084]
[1748121221478,1.07344167,672.65,672.39,0.65832084]
[1748121221683,1.07344167,672.64,672.39,0.65832084]
[1748121221878,1.07344167,672.63,672.4,0.698]
[1748121222183,1.07344167,672.62,672.4,0.698]
[1748121222386,1.07344167,672.61,672.4,0.698]
[1748121222583,1.07344167,672.6,672.4,0.698]
[1748121222779,1.07344167,672.59,672.4,0.698]
[1748121223085,1.07344167,672.58,672.4,0.698]
[1748121223284,0.29728283,672.76,672.4,0.698]
[1748121223285,1.07344167,672.57,672.4,0.698]
[1748121223584,1.07344167,672.56,672.4,0.698]
[1748121223782,1.07344167,672.55,672.4,0.698]
[1748121223984,1.07344167,672.54,672.4,0.698]
[1748121224283,1.07344167,672.53,672.4,0.698]
[1748121224480,1.07344167,672.52,672.4,0.698]
[1748121224684,1.07344167,672.51,672.4,0.698]
[1748121224885,1.07344167,672.5,672.4,0.698]
[1748121225084,1.07344167,672.49,672.4,0.698]
[1748121225383,0.29728283,672.76,672.4,0.698]
[1748121225585,1.0735119,672.75,672.41,0.65833069]
[1748121225879,1.0735119,672.74,672.41,0.65833069]
[1748121226184,1.07345506,672.73,672.41,0.65833069]
[1748121226385,1.07345506,672.73,672.4,0.698]
[1748121226386,1.07345506,672.72,672.42,0.65833069]
[1748121226684,1.07345506,672.71,672.42,0.65833069]
[1748121226882,1.07336505,672.7,672.42,0.65833069]
[1748121227082,1.07336505,672.69,672.42,0.65833069]
[1748121227281,1.07336505,672.68,672.42,0.65833069]
[1748121227479,1.07336505,672.67,672.42,0.65833069]
[1748121227682,1.07336505,672.66,672.42,0.65833069]
[1748121227883,1.07336505,672.65,672.43,0.65833069]
[1748121228084,1.07336505,672.64,672.43,0.65833069]
[1748121228381,1.07336505,672.63,672.43,0.65833069]
[1748121228585,1.07336505,672.62,672.43,0.65833069]
[1748121228885,1.07336505,672.61,672.43,0.65833069]
[1748121229079,1.07336505,672.6,672.41,0.65833069]
[1748121229280,1.07336505,672.59,672.41,0.65833069]
[1748121229480,1.07336505,672.58,672.41,0.65833069]
[1748121229681,1.07336505,672.57,672.41,0.65833069]
[1748121229880,1.07336505,672.56,672.41,0.65833069]
[1748121230084,0.29728283,672.76,672.41,0.65833069]
[1748121230285,1.07411303,672.75,672.41,0.65833069]
[1748121230485,1.07411303,672.74,672.41,0.65833069]
[1748121230680,1.07411303,672.73,672.41,0.65833069]
[1748121230883,1.07411303,672.72,672.42,0.703]
[1748121231085,1.07411303,672.71,672.42,0.703]
[1748121231285,1.07411303,672.7,672.42,0.703]
[1748121231486,1.07411303,672.69,672.42,0.703]
[1748121231686,1.07411303,672.68,672.42,0.703]
[1748121231985,1.07411303,672.67,672.43,0.65833069]
[1748121232179,1.07411303,672.66,672.43,0.65833069]
[1748121232384,1.07411303,672.65,672.43,0.65833069]
[1748121232581,1.07411303,672.64,672.43,0.65833069]
[1748121232785,1.07412443,672.63,672.43,0.65833069]
[1748121232986,1.07412443,672.62,672.43,0.65833069]
[1748121233186,1.07412443,672.61,672.43,0.65833069]
[1748121233387,1.07412443,672.6,672.43,0.65833069]
[1748121233580,1.07412443,672.59,672.43,0.65833069]
[1748121233785,1.07412443,672.58,672.43,0.65833069]
[1748121233987,1.07412443,672.57,672.43,0.65833069]
[1748121234185,1.07412443,672.56,672.43,1.30833069]
[1748121234384,0.29728283,672.76,672.43,1.30833069]
[1748121234582,1.07421647,672.75,672.44,0.65833069]
[1748121234785,1.074187,672.74,672.44,0.65833069]
[1748121234984,1.074187,672.73,672.44,0.65833069]
[1748121235184,1.074187,672.72,672.44,0.65833069]
[1748121235383,1.074187,672.71,672.44,0.65833069]
[1748121235583,1.074187,672.7,672.44,0.65833069]
[1748121235783,1.074187,672.69,672.44,0.65833069]
[1748121235983,1.074187,672.68,672.44,0.65833069]
[1748121236183,1.074187,672.67,672.44,0.65833069]
[1748121236484,1.074187,672.66,672.44,0.65833069]
[1748121236686,1.074187,672.65,672.44,0.65833069]
[1748121236885,1.074187,672.64,672.44,0.65833069]
[1748121237087,0.29728283,672.76,672.44,0.65833069]
[1748121237088,1.074187,672.63,672.44,0.65833069]
[1748121237288,1.074187,672.62,672.44,0.65833069]
[1748121237588,1.074187,672.61,672.44,0.65833069]
[1748121237788,1.074187,672.6,672.44,0.65833069]
[1748121237988,1.074187,672.59,672.44,0.65833069]
[1748121238189,1.074187,672.58,672.44,0.65833069]
[1748121238390,1.074187,672.57,672.44,0.65833069]
[1748121238691,1.07448979,672.56,672.44,0.65833069]
[1748121238891,0.29728283,672.76,672.44,0.65833069]
[1748121238892,1.07448979,672.55,672.44,0.65833069]
[1748121239086,0.29728283,672.76,672.44,0.65833069]
[1748121239288,1.07446605,672.75,672.44,0.65833069]
[1748121239588,1.07446605,672.74,672.44,0.65833069]
[1748121239786,1.07446605,672.73,672.44,0.65833069]
[1748121239985,1.07446605,672.72,672.44,0.65833069]
[1748121240187,1.07446605,672.71,672.44,0.65833069]
[1748121240390,1.07446605,672.7,672.44,0.65833069]
[1748121240590,1.07446605,672.69,672.45,0.699]
[1748121240788,1.07446605,672.68,672.45,0.699]